[Event "December 5 Late 2023"]
[Site "https://www.chess.com"]
[Date "2023.12.05"]
[Round "7"]
[White "Zhigalko, Sergei"]
[Black "Bortnyk, Olexandr"]
[Result "1-0"]
[Board "3"]
[TimeControl "180+1"]
[WhiteFideId "13502956"]
[BlackFideId "14120828"]
[WhiteElo "2944"]
[BlackElo "3091"]
[WhiteTeam "BLR"]
[BlackTeam "UKR"]
[WhiteClock "0:00:04"]
[BlackClock "0:00:02"]

1. e4 {[%clk 0:03:00]}  d6 {[%clk 0:02:45]} 2. d4 {[%clk 0:03:01]}  Nf6 {[%clk 0:02:46]} 3. Nc3 {[%clk 0:03:01]}  Nbd7 {[%clk 0:02:46]} 4. Nf3 {[%clk 0:02:59]}  e5 {[%clk 0:02:46]} 5. Bc4 {[%clk 0:02:58]}  Be7 {[%clk 0:02:46]} 6. O-O {[%clk 0:02:58]}  O-O {[%clk 0:02:46]} 7. Re1 {[%clk 0:02:54]}  a6 {[%clk 0:02:47]} 8. a4 {[%clk 0:02:53]}  b6 {[%clk 0:02:47]} 9. Ba2 {[%clk 0:02:32]}  Bb7 {[%clk 0:02:46]} 10. h3 {[%clk 0:02:16]}  c6 {[%clk 0:02:44]} 11. Nh4 {[%clk 0:02:05]}  g6 {[%clk 0:02:00]} 12. Nf3 {[%clk 0:02:02]}  Nh5 {[%clk 0:01:50]} 13. Bh6 {[%clk 0:02:00]}  Ng7 {[%clk 0:01:50]} 14. Qd2 {[%clk 0:01:56]}  b5 {[%clk 0:01:46]} 15. Rad1 {[%clk 0:01:55]}  b4 {[%clk 0:01:24]} 16. Ne2 {[%clk 0:01:54]}  Qa5 {[%clk 0:01:24]} 17. dxe5 {[%clk 0:01:49]}  Nxe5 {[%clk 0:01:25]} 18. Nxe5 {[%clk 0:01:50]}  Qxe5 {[%clk 0:00:52]} 19. Qxb4 {[%clk 0:01:50]}  Rab8 {[%clk 0:00:38]} 20. Bf4 {[%clk 0:01:50]}  c5 {[%clk 0:00:32]} 21. Bxe5 {[%clk 0:01:30]}  cxb4 {[%clk 0:00:33]} 22. Bxd6 {[%clk 0:01:30]}  Bxd6 {[%clk 0:00:34]} 23. Rxd6 {[%clk 0:01:31]}  Bxe4 {[%clk 0:00:35]} 24. Nd4 {[%clk 0:01:31]}  Nf5 {[%clk 0:00:30]} 25. Nxf5 {[%clk 0:00:51]}  Bxf5 {[%clk 0:00:31]} 26. Bb3 {[%clk 0:00:48]}  Rfe8 {[%clk 0:00:11]} 27. Rxe8+ {[%clk 0:00:43]}  Rxe8 {[%clk 0:00:12]} 28. Rxa6 {[%clk 0:00:40]}  Re1+ {[%clk 0:00:12]} 29. Kh2 {[%clk 0:00:40]}  Re2 {[%clk 0:00:13]} 30. Rb6 {[%clk 0:00:24]}  Rxf2 {[%clk 0:00:06]} 31. Rxb4 {[%clk 0:00:24]}  Bd7 {[%clk 0:00:03]} 32. Kg1 {[%clk 0:00:09]}  Rd2 {[%clk 0:00:03]} 33. Rc4 {[%clk 0:00:05]}  Be6 {[%clk 0:00:01]} 34. Rc7 {[%clk 0:00:04]}  Bxb3 {[%clk 0:00:01]} 35. cxb3 {[%clk 0:00:05]}  Rxb2 {[%clk 0:00:02]} 36. Rb7 {[%clk 0:00:05]}  Kg7 {[%clk 0:00:02]} 37. a5 {[%clk 0:00:05]}  Ra2 {[%clk 0:00:03]} 38. b4 {[%clk 0:00:05]}  Kf6 {[%clk 0:00:04]} 39. Rb6+ {[%clk 0:00:06]}  Ke5 {[%clk 0:00:04]} 40. Kh2 {[%clk 0:00:05]}  f5 {[%clk 0:00:05]} 41. Rb7 {[%clk 0:00:05]}  f4 {[%clk 0:00:04]} 42. Rxh7 {[%clk 0:00:04]}  f3 {[%clk 0:00:04]} 43. Kg3 {[%clk 0:00:05]}  fxg2 {[%clk 0:00:02]} 44. Kh2 {[%clk 0:00:05]}  Rb2 {[%clk 0:00:02]} 45. Rb7 {[%clk 0:00:04]}  Kf4 {[%clk 0:00:03]} 46. a6 {[%clk 0:00:04]}  Ra2 {[%clk 0:00:01]} 47. b5 {[%clk 0:00:04]}  Ke3 {[%clk 0:00:01]} 48. Rf7 {[%clk 0:00:04]}  Rb2 {[%clk 0:00:01]} 49. a7 {[%clk 0:00:04]}  Ra2 {[%clk 0:00:02]} 50. b6 {[%clk 0:00:05]}  g5 {[%clk 0:00:02]} 51. b7 {[%clk 0:00:05]}  g1=Q+ {[%clk 0:00:02]} 52. Kxg1 {[%clk 0:00:04]}  Rxa7 {[%clk 0:00:02]} 53. Re7+ {[%clk 0:00:04]}  Kf3 {[%clk 0:00:03]} 54. Rf7+ {[%clk 0:00:03]}  Ke3 {[%clk 0:00:02]} 55. b8=Q {[%clk 0:00:03]}  Rxf7 {[%clk 0:00:03]} 56. Qb3+ {[%clk 0:00:03]}  Kf4 {[%clk 0:00:03]} 57. Qxf7+ {[%clk 0:00:04]}  Kg3 {[%clk 0:00:02]} 58. Qf2+ {[%clk 0:00:04]} 1-0

[Event "December 5 Late 2023"]
[Site "https://www.chess.com"]
[Date "2023.12.05"]
[Round "7"]
[White "Naroditsky, Daniel"]
[Black "Drozdowski, Kacper"]
[Result "1/2-1/2"]
[Board "5"]
[TimeControl "180+1"]
[WhiteFideId "2026961"]
[BlackFideId "1136720"]
[WhiteElo "3169"]
[BlackElo "2988"]
[WhiteTeam "USA"]
[BlackTeam "POL"]
[WhiteClock "0:00:09"]
[BlackClock "0:00:10"]

1. e4 {[%clk 0:03:00]}  c5 {[%clk 0:02:59]} 2. c3 {[%clk 0:02:57]}  d6 {[%clk 0:02:59]} 3. d4 {[%clk 0:02:56]}  Nf6 {[%clk 0:03:00]} 4. dxc5 {[%clk 0:02:47]}  Nc6 {[%clk 0:02:59]} 5. Qc2 {[%clk 0:02:43]}  dxc5 {[%clk 0:02:57]} 6. Nf3 {[%clk 0:02:42]}  Bg4 {[%clk 0:02:51]} 7. Nbd2 {[%clk 0:02:39]}  e6 {[%clk 0:02:47]} 8. Bb5 {[%clk 0:02:40]}  Bxf3 {[%clk 0:02:43]} 9. Nxf3 {[%clk 0:02:36]}  Qb6 {[%clk 0:02:43]} 10. Qa4 {[%clk 0:02:11]}  Be7 {[%clk 0:02:06]} 11. Ne5 {[%clk 0:02:02]}  Rc8 {[%clk 0:01:56]} 12. Bxc6+ {[%clk 0:01:40]}  bxc6 {[%clk 0:01:56]} 13. O-O {[%clk 0:01:40]}  O-O {[%clk 0:01:49]} 14. Qc2 {[%clk 0:01:22]}  Rfd8 {[%clk 0:01:46]} 15. h3 {[%clk 0:01:15]}  Qa6 {[%clk 0:01:31]} 16. Be3 {[%clk 0:01:08]}  Nd7 {[%clk 0:01:27]} 17. Nf3 {[%clk 0:00:59]}  Nb6 {[%clk 0:01:25]} 18. b3 {[%clk 0:00:51]}  c4 {[%clk 0:01:20]} 19. Rfd1 {[%clk 0:00:50]}  c5 {[%clk 0:01:03]} 20. Qe2 {[%clk 0:00:42]}  Qb7 {[%clk 0:01:01]} 21. Qc2 {[%clk 0:00:40]}  h6 {[%clk 0:00:59]} 22. Rab1 {[%clk 0:00:37]}  cxb3 {[%clk 0:00:59]} 23. axb3 {[%clk 0:00:37]}  a5 {[%clk 0:00:57]} 24. c4 {[%clk 0:00:36]}  Rxd1+ {[%clk 0:00:51]} 25. Rxd1 {[%clk 0:00:36]}  a4 {[%clk 0:00:52]} 26. bxa4 {[%clk 0:00:35]}  Qa6 {[%clk 0:00:52]} 27. Ne5 {[%clk 0:00:30]}  Qxa4 {[%clk 0:00:50]} 28. Qxa4 {[%clk 0:00:27]}  Nxa4 {[%clk 0:00:51]} 29. Rd7 {[%clk 0:00:27]}  Kf8 {[%clk 0:00:49]} 30. Rb7 {[%clk 0:00:23]}  Nc3 {[%clk 0:00:47]} 31. f3 {[%clk 0:00:21]}  Ne2+ {[%clk 0:00:42]} 32. Kf2 {[%clk 0:00:22]}  Nd4 {[%clk 0:00:41]} 33. Bxd4 {[%clk 0:00:09]}  cxd4 {[%clk 0:00:42]} 34. Ke2 {[%clk 0:00:10]}  Ke8 {[%clk 0:00:39]} 35. Kd3 {[%clk 0:00:10]}  Ra8 {[%clk 0:00:23]} 36. Kxd4 {[%clk 0:00:11]}  Rd8+ {[%clk 0:00:20]} 37. Ke3 {[%clk 0:00:10]}  Bc5+ {[%clk 0:00:20]} 38. Ke2 {[%clk 0:00:10]}  f6 {[%clk 0:00:17]} 39. Nd3 {[%clk 0:00:10]}  Be7 {[%clk 0:00:16]} 40. Nf4 {[%clk 0:00:09]}  Kf7 {[%clk 0:00:15]} 41. h4 {[%clk 0:00:06]}  g5 {[%clk 0:00:15]} 42. hxg5 {[%clk 0:00:05]}  hxg5 {[%clk 0:00:16]} 43. Ng6 {[%clk 0:00:04]}  Kxg6 {[%clk 0:00:15]} 44. Rxe7 {[%clk 0:00:05]}  e5 {[%clk 0:00:11]} 45. Rc7 {[%clk 0:00:02]}  Rd4 {[%clk 0:00:12]} 46. Ke3 {[%clk 0:00:02]}  Rd1 {[%clk 0:00:10]} 47. Ke2 {[%clk 0:00:02]}  Rd4 {[%clk 0:00:10]} 48. Ke3 {[%clk 0:00:03]}  Rd1 {[%clk 0:00:10]} 49. c5 {[%clk 0:00:03]}  Rc1 {[%clk 0:00:08]} 50. Rc8 {[%clk 0:00:04]}  Kg7 {[%clk 0:00:08]} 51. c6 {[%clk 0:00:04]}  Rc5 {[%clk 0:00:08]} 52. Kd3 {[%clk 0:00:04]}  Kh7 {[%clk 0:00:08]} 53. Ke3 {[%clk 0:00:04]}  Kg7 {[%clk 0:00:09]} 54. Kf2 {[%clk 0:00:04]}  Rc2+ {[%clk 0:00:08]} 55. Kg3 {[%clk 0:00:05]}  Kh7 {[%clk 0:00:08]} 56. Kg4 {[%clk 0:00:04]}  Kg6 {[%clk 0:00:06]} 57. g3 {[%clk 0:00:04]}  Rc3 {[%clk 0:00:06]} 58. c7 {[%clk 0:00:02]}  Kg7 {[%clk 0:00:06]} 59. Kh3 {[%clk 0:00:02]}  Kh7 {[%clk 0:00:06]} 60. Kg4 {[%clk 0:00:03]}  Kg7 {[%clk 0:00:06]} 61. Kf5 {[%clk 0:00:01]}  Rxf3+ {[%clk 0:00:06]} 62. Ke6 {[%clk 0:00:02]}  Rc3 {[%clk 0:00:05]} 63. g4 {[%clk 0:00:03]}  Rc1 {[%clk 0:00:04]} 64. Ke7 {[%clk 0:00:03]}  Rc2 {[%clk 0:00:04]} 65. Kd6 {[%clk 0:00:03]}  Rd2+ {[%clk 0:00:04]} 66. Ke6 {[%clk 0:00:04]}  Rc2 {[%clk 0:00:05]} 67. Kf5 {[%clk 0:00:02]}  Rc1 {[%clk 0:00:05]} 68. Ke6 {[%clk 0:00:03]}  Rc2 {[%clk 0:00:05]} 69. Kd7 {[%clk 0:00:03]}  Rd2+ {[%clk 0:00:06]} 70. Kc6 {[%clk 0:00:04]}  Rc2+ {[%clk 0:00:06]} 71. Kb6 {[%clk 0:00:04]}  Rb2+ {[%clk 0:00:07]} 72. Ka6 {[%clk 0:00:05]}  Ra2+ {[%clk 0:00:08]} 73. Kb5 {[%clk 0:00:05]}  Rc2 {[%clk 0:00:07]} 74. Kb4 {[%clk 0:00:06]}  Rc1 {[%clk 0:00:08]} 75. Kb3 {[%clk 0:00:06]}  Kh7 {[%clk 0:00:07]} 76. Kb4 {[%clk 0:00:04]}  Kg7 {[%clk 0:00:07]} 77. Kb3 {[%clk 0:00:05]}  Kh7 {[%clk 0:00:07]} 78. Kb2 {[%clk 0:00:06]}  Rc6 {[%clk 0:00:06]} 79. Ka3 {[%clk 0:00:06]}  Kg7 {[%clk 0:00:06]} 80. Ka4 {[%clk 0:00:06]}  Rc1 {[%clk 0:00:07]} 81. Ka5 {[%clk 0:00:07]}  Ra1+ {[%clk 0:00:07]} 82. Kb6 {[%clk 0:00:07]}  Rb1+ {[%clk 0:00:08]} 83. Kc6 {[%clk 0:00:08]}  Rc1+ {[%clk 0:00:08]} 84. Kb6 {[%clk 0:00:08]}  Rb1+ {[%clk 0:00:09]} 85. Kc6 {[%clk 0:00:09]}  Rc1+ {[%clk 0:00:09]} 86. Kd6 {[%clk 0:00:10]}  Rd1+ {[%clk 0:00:10]} 87. Ke7 {[%clk 0:00:11]}  Rc1 {[%clk 0:00:10]} 88. Ke6 {[%clk 0:00:09]}  Rc2 {[%clk 0:00:10]} 1/2-1/2

[Event "December 5 Late 2023"]
[Site "https://www.chess.com"]
[Date "2023.12.05"]
[Round "7"]
[White "Martinez Alcantara, Jose Eduardo"]
[Black "Nihal Sarin"]
[Result "1/2-1/2"]
[Board "7"]
[TimeControl "180+1"]
[WhiteFideId "3805662"]
[BlackFideId "25092340"]
[WhiteElo "2977"]
[BlackElo "3097"]
[WhiteTeam "PER"]
[BlackTeam "IND"]
[WhiteClock "0:00:02"]
[BlackClock "0:00:06"]

1. e4 {[%clk 0:03:00]}  c5 {[%clk 0:02:53]} 2. Nf3 {[%clk 0:03:01]}  Nc6 {[%clk 0:02:53]} 3. c3 {[%clk 0:02:59]}  d5 {[%clk 0:02:52]} 4. exd5 {[%clk 0:02:59]}  Qxd5 {[%clk 0:02:53]} 5. d4 {[%clk 0:03:00]}  Bf5 {[%clk 0:02:53]} 6. Be3 {[%clk 0:02:58]}  cxd4 {[%clk 0:02:53]} 7. Nxd4 {[%clk 0:02:58]}  Nf6 {[%clk 0:02:54]} 8. Qb3 {[%clk 0:02:26]}  Nxd4 {[%clk 0:02:35]} 9. Bxd4 {[%clk 0:02:25]}  Qe4+ {[%clk 0:02:28]} 10. Be3 {[%clk 0:02:22]}  Be6 {[%clk 0:02:26]} 11. Bb5+ {[%clk 0:02:13]}  Nd7 {[%clk 0:02:26]} 12. Qa4 {[%clk 0:01:44]}  Qxg2 {[%clk 0:02:23]} 13. Rf1 {[%clk 0:01:44]}  a6 {[%clk 0:02:17]} 14. Nd2 {[%clk 0:01:44]}  Rc8 {[%clk 0:02:15]} 15. Be2 {[%clk 0:01:44]}  Bd5 {[%clk 0:01:53]} 16. O-O-O {[%clk 0:01:40]}  Bc6 {[%clk 0:01:53]} 17. Qh4 {[%clk 0:01:37]}  e6 {[%clk 0:01:27]} 18. Rg1 {[%clk 0:01:34]}  Be7 {[%clk 0:01:09]} 19. Qf4 {[%clk 0:00:48]}  g5 {[%clk 0:01:08]} 20. Qd4 {[%clk 0:00:37]}  e5 {[%clk 0:01:09]} 21. Qxd7+ {[%clk 0:00:36]}  Kxd7 {[%clk 0:01:10]} 22. Nf3+ {[%clk 0:00:35]}  Ke6 {[%clk 0:01:06]} 23. Rxg2 {[%clk 0:00:36]}  f6 {[%clk 0:01:07]} 24. Rgg1 {[%clk 0:00:36]}  h5 {[%clk 0:01:02]} 25. h3 {[%clk 0:00:35]}  b5 {[%clk 0:01:02]} 26. Nd2 {[%clk 0:00:33]}  Be8 {[%clk 0:00:53]} 27. Bd3 {[%clk 0:00:31]}  Rg8 {[%clk 0:00:47]} 28. Bc2 {[%clk 0:00:31]}  Rg7 {[%clk 0:00:26]} 29. Bb3+ {[%clk 0:00:29]}  Kf5 {[%clk 0:00:25]} 30. Bc2+ {[%clk 0:00:29]}  Ke6 {[%clk 0:00:25]} 31. Bb3+ {[%clk 0:00:30]}  Kf5 {[%clk 0:00:26]} 32. Kb1 {[%clk 0:00:30]}  Bf7 {[%clk 0:00:25]} 33. Bc2+ {[%clk 0:00:28]}  Ke6 {[%clk 0:00:26]} 34. h4 {[%clk 0:00:26]}  g4 {[%clk 0:00:26]} 35. f4 {[%clk 0:00:24]}  Bg6 {[%clk 0:00:23]} 36. fxe5 {[%clk 0:00:24]}  Bxc2+ {[%clk 0:00:22]} 37. Kxc2 {[%clk 0:00:24]}  fxe5 {[%clk 0:00:23]} 38. Ne4 {[%clk 0:00:23]}  Bxh4 {[%clk 0:00:20]} 39. Rd6+ {[%clk 0:00:21]}  Kf5 {[%clk 0:00:20]} 40. Kd3 {[%clk 0:00:21]}  g3 {[%clk 0:00:21]} 41. Rg2 {[%clk 0:00:09]}  Kg4 {[%clk 0:00:19]} 42. Ke2 {[%clk 0:00:09]}  Kh3 {[%clk 0:00:16]} 43. Rg1 {[%clk 0:00:09]}  Rf8 {[%clk 0:00:12]} 44. Rd3 {[%clk 0:00:10]}  Rg4 {[%clk 0:00:12]} 45. Nd2 {[%clk 0:00:06]}  e4 {[%clk 0:00:09]} 46. Rd5 {[%clk 0:00:07]}  Rh8 {[%clk 0:00:06]} 47. Re5 {[%clk 0:00:07]}  Kh2 {[%clk 0:00:06]} 48. Rxe4 {[%clk 0:00:06]}  Rxe4 {[%clk 0:00:04]} 49. Nxe4 {[%clk 0:00:07]}  g2 {[%clk 0:00:05]} 50. Nd2 {[%clk 0:00:06]}  Bg3 {[%clk 0:00:04]} 51. Nf3+ {[%clk 0:00:04]}  Kh3 {[%clk 0:00:04]} 52. Ng5+ {[%clk 0:00:05]}  Kh2 {[%clk 0:00:05]} 53. Nf3+ {[%clk 0:00:06]}  Kh3 {[%clk 0:00:05]} 54. Ng5+ {[%clk 0:00:02]}  Kh2 {[%clk 0:00:06]} 55. Nf3+ {[%clk 0:00:02]} 1/2-1/2

[Event "December 5 Late 2023"]
[Site "https://www.chess.com"]
[Date "2023.12.05"]
[Round "7"]
[White "Melkumyan, Hrant"]
[Black "Oparin, Grigoriy"]
[Result "0-1"]
[Board "9"]
[TimeControl "180+1"]
[WhiteFideId "13302485"]
[BlackFideId "24125890"]
[WhiteElo "2915"]
[BlackElo "3054"]
[WhiteTeam "ARM"]
[BlackTeam "USA"]
[WhiteClock "0:01:21"]
[BlackClock "0:02:03"]

1. Nf3 {[%clk 0:02:55]}  Nf6 {[%clk 0:02:58]} 2. c4 {[%clk 0:02:55]}  b6 {[%clk 0:02:57]} 3. g3 {[%clk 0:02:52]}  Bb7 {[%clk 0:02:57]} 4. Bg2 {[%clk 0:02:52]}  c5 {[%clk 0:02:57]} 5. O-O {[%clk 0:02:52]}  g6 {[%clk 0:02:58]} 6. Nc3 {[%clk 0:02:46]}  Bg7 {[%clk 0:02:58]} 7. b3 {[%clk 0:02:45]}  O-O {[%clk 0:02:57]} 8. Bb2 {[%clk 0:02:46]}  e6 {[%clk 0:02:57]} 9. d4 {[%clk 0:02:45]}  Qe7 {[%clk 0:02:56]} 10. e3 {[%clk 0:02:40]}  d5 {[%clk 0:02:54]} 11. dxc5 {[%clk 0:02:35]}  bxc5 {[%clk 0:02:50]} 12. cxd5 {[%clk 0:02:33]}  exd5 {[%clk 0:02:51]} 13. Rc1 {[%clk 0:02:33]}  Rd8 {[%clk 0:02:42]} 14. Ne1 {[%clk 0:02:25]}  Na6 {[%clk 0:02:39]} 15. Nd3 {[%clk 0:02:20]}  Rac8 {[%clk 0:02:34]} 16. Re1 {[%clk 0:02:12]}  Ne4 {[%clk 0:02:30]} 17. Qc2 {[%clk 0:01:59]}  Nb4 {[%clk 0:02:22]} 18. Qb1 {[%clk 0:01:59]}  Nd2 {[%clk 0:02:10]} 19. Qa1 {[%clk 0:01:34]}  Nxd3 {[%clk 0:02:10]} 20. Nxd5 {[%clk 0:01:34]}  Bxd5 {[%clk 0:02:08]} 21. Bxg7 {[%clk 0:01:34]}  Bxg2 {[%clk 0:02:04]} 22. Kxg2 {[%clk 0:01:21]}  Qe4+ {[%clk 0:02:03]} 0-1

[Event "December 5 Late 2023"]
[Site "https://www.chess.com"]
[Date "2023.12.05"]
[Round "7"]
[White "Duda, Jan-Krzysztof"]
[Black "Demchenko, Anton"]
[Result "1-0"]
[Board "10"]
[TimeControl "180+1"]
[WhiteFideId "1170546"]
[BlackFideId "4160258"]
[WhiteElo "3045"]
[BlackElo "2896"]
[WhiteTeam "POL"]
[BlackTeam "SLO"]
[WhiteClock "0:00:06"]
[BlackClock "0:00:00"]

1. f4 {[%clk 0:03:00]}  d5 {[%clk 0:02:57]} 2. Nf3 {[%clk 0:03:00]}  Nh6 {[%clk 0:02:57]} 3. c3 {[%clk 0:02:51]}  Bg4 {[%clk 0:02:53]} 4. Ne5 {[%clk 0:02:44]}  Bf5 {[%clk 0:02:49]} 5. Qb3 {[%clk 0:02:42]}  Bc8 {[%clk 0:02:35]} 6. d3 {[%clk 0:02:34]}  f6 {[%clk 0:02:34]} 7. Nf3 {[%clk 0:02:31]}  Nc6 {[%clk 0:02:33]} 8. e4 {[%clk 0:02:28]}  e6 {[%clk 0:02:31]} 9. Be3 {[%clk 0:02:10]}  Be7 {[%clk 0:02:24]} 10. Nbd2 {[%clk 0:02:08]}  O-O {[%clk 0:02:21]} 11. h3 {[%clk 0:02:04]}  Nf7 {[%clk 0:02:19]} 12. g4 {[%clk 0:02:03]}  Na5 {[%clk 0:02:09]} 13. Qc2 {[%clk 0:01:51]}  c5 {[%clk 0:02:09]} 14. Nb3 {[%clk 0:01:26]}  b6 {[%clk 0:02:01]} 15. h4 {[%clk 0:01:14]}  Nc6 {[%clk 0:01:47]} 16. g5 {[%clk 0:01:10]}  f5 {[%clk 0:01:31]} 17. Rd1 {[%clk 0:00:46]}  Bb7 {[%clk 0:01:09]} 18. Bh3 {[%clk 0:00:44]}  Nd6 {[%clk 0:00:59]} 19. e5 {[%clk 0:00:42]}  Nb5 {[%clk 0:00:57]} 20. a4 {[%clk 0:00:38]}  Nc7 {[%clk 0:00:55]} 21. d4 {[%clk 0:00:37]}  Na6 {[%clk 0:00:43]} 22. Bf1 {[%clk 0:00:30]}  cxd4 {[%clk 0:00:41]} 23. Nbxd4 {[%clk 0:00:24]}  Qc8 {[%clk 0:00:31]} 24. Nxc6 {[%clk 0:00:20]}  Bxc6 {[%clk 0:00:32]} 25. Bxa6 {[%clk 0:00:13]}  Qxa6 {[%clk 0:00:31]} 26. Nd4 {[%clk 0:00:13]}  Bd7 {[%clk 0:00:17]} 27. Kf2 {[%clk 0:00:08]}  Rac8 {[%clk 0:00:16]} 28. Ra1 {[%clk 0:00:08]}  Bc5 {[%clk 0:00:15]} 29. h5 {[%clk 0:00:07]}  Rc7 {[%clk 0:00:11]} 30. Qd2 {[%clk 0:00:03]}  Rfc8 {[%clk 0:00:11]} 31. b3 {[%clk 0:00:04]}  Bf8 {[%clk 0:00:10]} 32. Rhc1 {[%clk 0:00:03]}  Qb7 {[%clk 0:00:09]} 33. g6 {[%clk 0:00:03]}  h6 {[%clk 0:00:10]} 34. Kg3 {[%clk 0:00:04]}  Bc5 {[%clk 0:00:09]} 35. Kh3 {[%clk 0:00:04]}  Be7 {[%clk 0:00:09]} 36. Ra2 {[%clk 0:00:04]}  a6 {[%clk 0:00:09]} 37. Rcc2 {[%clk 0:00:04]}  Bc5 {[%clk 0:00:09]} 38. Ra1 {[%clk 0:00:04]}  Bf8 {[%clk 0:00:09]} 39. Kg3 {[%clk 0:00:04]}  Be7 {[%clk 0:00:09]} 40. Ne2 {[%clk 0:00:04]}  Bc5 {[%clk 0:00:09]} 41. Bd4 {[%clk 0:00:05]}  Be7 {[%clk 0:00:09]} 42. Raa2 {[%clk 0:00:04]}  Bc5 {[%clk 0:00:09]} 43. b4 {[%clk 0:00:04]}  Be7 {[%clk 0:00:09]} 44. a5 {[%clk 0:00:03]}  b5 {[%clk 0:00:08]} 45. Rab2 {[%clk 0:00:03]}  Rc4 {[%clk 0:00:09]} 46. Nc1 {[%clk 0:00:03]}  Qc7 {[%clk 0:00:07]} 47. Nd3 {[%clk 0:00:03]}  Qd8 {[%clk 0:00:07]} 48. Qe3 {[%clk 0:00:02]}  Bh4+ {[%clk 0:00:07]} 49. Kh3 {[%clk 0:00:03]}  Be7 {[%clk 0:00:06]} 50. Rb1 {[%clk 0:00:03]}  R4c6 {[%clk 0:00:05]} 51. Bc5 {[%clk 0:00:02]}  Qe8 {[%clk 0:00:04]} 52. Bd4 {[%clk 0:00:02]}  Bd8 {[%clk 0:00:04]} 53. Rbc1 {[%clk 0:00:02]}  Qe7 {[%clk 0:00:05]} 54. Nc5 {[%clk 0:00:02]}  Qh4+ {[%clk 0:00:05]} 55. Kg2 {[%clk 0:00:02]}  Qxh5 {[%clk 0:00:05]} 56. Qg3 {[%clk 0:00:03]}  Bh4 {[%clk 0:00:04]} 57. Qh3 {[%clk 0:00:03]}  Qxg6+ {[%clk 0:00:05]} 58. Kf3 {[%clk 0:00:04]}  Qg4+ {[%clk 0:00:04]} 59. Qxg4 {[%clk 0:00:04]}  fxg4+ {[%clk 0:00:05]} 60. Kxg4 {[%clk 0:00:04]}  Be7 {[%clk 0:00:06]} 61. Nxd7 {[%clk 0:00:04]}  Kf7 {[%clk 0:00:04]} 62. Nb6 {[%clk 0:00:04]}  Rh8 {[%clk 0:00:04]} 63. f5 {[%clk 0:00:04]}  h5+ {[%clk 0:00:04]} 64. Kf4 {[%clk 0:00:04]}  exf5 {[%clk 0:00:04]} 65. Nxd5 {[%clk 0:00:04]}  Ke6 {[%clk 0:00:03]} 66. Nxe7 {[%clk 0:00:04]}  Kxe7 {[%clk 0:00:03]} 67. Kxf5 {[%clk 0:00:05]}  Rf8+ {[%clk 0:00:03]} 68. Ke4 {[%clk 0:00:05]}  Ke6 {[%clk 0:00:04]} 69. Rg2 {[%clk 0:00:06]}  Rc7 {[%clk 0:00:00]} 70. Rcg1 {[%clk 0:00:06]} 1-0

[Event "December 5 Late 2023"]
[Site "https://www.chess.com"]
[Date "2023.12.05"]
[Round "7"]
[White "Hamidi, Amir Mohammad"]
[Black "Paravyan, David"]
[Result "0-1"]
[Board "12"]
[TimeControl "180+1"]
[WhiteFideId "12563285"]
[BlackFideId "4194985"]
[WhiteElo "2811"]
[BlackElo "3007"]
[WhiteTeam "IRI"]
[BlackTeam "FID"]
[WhiteClock "0:00:23"]
[BlackClock "0:00:06"]

1. d4 {[%clk 0:03:00]}  d5 {[%clk 0:03:00]} 2. c4 {[%clk 0:03:00]}  e6 {[%clk 0:03:00]} 3. Nc3 {[%clk 0:03:00]}  Nf6 {[%clk 0:02:59]} 4. Nf3 {[%clk 0:02:59]}  Be7 {[%clk 0:02:59]} 5. Bg5 {[%clk 0:02:59]}  h6 {[%clk 0:02:58]} 6. Bh4 {[%clk 0:02:59]}  O-O {[%clk 0:02:58]} 7. e3 {[%clk 0:02:59]}  b6 {[%clk 0:02:55]} 8. Rc1 {[%clk 0:02:58]}  Bb7 {[%clk 0:02:53]} 9. Be2 {[%clk 0:02:57]}  dxc4 {[%clk 0:02:53]} 10. Bxc4 {[%clk 0:02:58]}  Nbd7 {[%clk 0:02:53]} 11. O-O {[%clk 0:02:57]}  a6 {[%clk 0:02:53]} 12. Qe2 {[%clk 0:02:57]}  b5 {[%clk 0:02:53]} 13. Bd3 {[%clk 0:02:57]}  c5 {[%clk 0:02:54]} 14. Rfd1 {[%clk 0:02:53]}  Qb6 {[%clk 0:02:47]} 15. Ne5 {[%clk 0:02:49]}  Rad8 {[%clk 0:02:41]} 16. Nxd7 {[%clk 0:02:47]}  Rxd7 {[%clk 0:02:38]} 17. dxc5 {[%clk 0:02:34]}  Qc6 {[%clk 0:02:31]} 18. f3 {[%clk 0:02:28]}  g5 {[%clk 0:01:57]} 19. Bf2 {[%clk 0:02:20]}  Qxc5 {[%clk 0:01:38]} 20. Ne4 {[%clk 0:02:11]}  Nxe4 {[%clk 0:01:12]} 21. Rxc5 {[%clk 0:01:47]}  Nxc5 {[%clk 0:01:13]} 22. Bc2 {[%clk 0:01:47]}  Rxd1+ {[%clk 0:01:13]} 23. Qxd1 {[%clk 0:01:48]}  Rd8 {[%clk 0:01:13]} 24. Qe2 {[%clk 0:01:43]}  b4 {[%clk 0:01:11]} 25. h4 {[%clk 0:01:36]}  Bc6 {[%clk 0:01:04]} 26. Qc4 {[%clk 0:01:32]}  Rd2 {[%clk 0:00:59]} 27. Bb3 {[%clk 0:01:25]}  Bb5 {[%clk 0:00:47]} 28. Qxb4 {[%clk 0:01:21]}  Rxf2 {[%clk 0:00:46]} 29. hxg5 {[%clk 0:01:17]}  hxg5 {[%clk 0:00:44]} 30. Qa5 {[%clk 0:01:15]}  Rxb2 {[%clk 0:00:42]} 31. Qc7 {[%clk 0:01:12]}  Bf8 {[%clk 0:00:41]} 32. Qd8 {[%clk 0:01:12]}  Nxb3 {[%clk 0:00:27]} 33. Qxg5+ {[%clk 0:01:08]}  Bg7 {[%clk 0:00:26]} 34. Qd8+ {[%clk 0:01:07]}  Kh7 {[%clk 0:00:27]} 35. Qh4+ {[%clk 0:01:07]}  Bh6 {[%clk 0:00:25]} 36. axb3 {[%clk 0:01:08]}  Rxb3 {[%clk 0:00:12]} 37. Qe4+ {[%clk 0:01:08]}  Kh8 {[%clk 0:00:11]} 38. Qd4+ {[%clk 0:01:05]}  Kg8 {[%clk 0:00:08]} 39. Qd8+ {[%clk 0:01:05]}  Kh7 {[%clk 0:00:08]} 40. Qf6 {[%clk 0:01:03]}  Bxe3+ {[%clk 0:00:05]} 41. Kh2 {[%clk 0:01:03]}  Kg8 {[%clk 0:00:04]} 42. Qd8+ {[%clk 0:00:59]}  Kg7 {[%clk 0:00:04]} 43. Kg3 {[%clk 0:01:00]}  Rd3 {[%clk 0:00:05]} 44. Qh4 {[%clk 0:00:59]}  Rd5 {[%clk 0:00:04]} 45. Qe4 {[%clk 0:00:57]}  Bg5 {[%clk 0:00:05]} 46. Kh3 {[%clk 0:00:54]}  Bf6 {[%clk 0:00:05]} 47. f4 {[%clk 0:00:52]}  Bd3 {[%clk 0:00:05]} 48. Qe1 {[%clk 0:00:50]}  Bg6 {[%clk 0:00:05]} 49. g4 {[%clk 0:00:48]}  a5 {[%clk 0:00:06]} 50. g5 {[%clk 0:00:48]}  Bd4 {[%clk 0:00:06]} 51. Qd1 {[%clk 0:00:46]}  Bf5+ {[%clk 0:00:07]} 52. Kg2 {[%clk 0:00:45]}  Be4+ {[%clk 0:00:07]} 53. Kh3 {[%clk 0:00:45]}  Bf5+ {[%clk 0:00:08]} 54. Kg2 {[%clk 0:00:45]}  Kg8 {[%clk 0:00:07]} 55. Qb3 {[%clk 0:00:43]}  Bg7 {[%clk 0:00:07]} 56. Qb8+ {[%clk 0:00:41]}  Bf8 {[%clk 0:00:07]} 57. Qa7 {[%clk 0:00:38]}  Rd2+ {[%clk 0:00:07]} 58. Kf3 {[%clk 0:00:38]}  Ra2 {[%clk 0:00:08]} 59. Ke3 {[%clk 0:00:35]}  a4 {[%clk 0:00:08]} 60. Kd4 {[%clk 0:00:35]}  a3 {[%clk 0:00:08]} 61. Ke5 {[%clk 0:00:36]}  Bg7+ {[%clk 0:00:07]} 62. Kd6 {[%clk 0:00:35]}  Bf8+ {[%clk 0:00:07]} 63. Ke5 {[%clk 0:00:36]}  Bg6 {[%clk 0:00:07]} 64. Kf6 {[%clk 0:00:34]}  Rd2 {[%clk 0:00:07]} 65. Qa8 {[%clk 0:00:23]}  Rd5 {[%clk 0:00:06]} 0-1